bitfinex/quotes_BTCUSD_20240613
["timestamp","ask_amount","ask_price","bid_price","bid_amount"]
[1718303698607,0.245449,66823.0,66822.0,0.01107844]
[1718303698982,0.245449,66823.0,66822.0,0.00855]
[1718303699529,1.17477956,66823.0,66822.0,0.00855]
[1718303699729,1.24693953,66823.0,66822.0,0.00855]
[1718303699977,1.19246493,66823.0,66822.0,0.00855]
[1718303701017,0.015,66823.0,66822.0,0.00855]
[1718303701220,0.0858,66823.0,66822.0,0.00855]
[1718303701362,0.0858,66823.0,66822.0,0.01107844]
[1718303701976,0.235449,66823.0,66822.0,0.01107844]
[1718303703580,0.015,66823.0,66822.0,0.10196063]
[1718303703778,0.0858,66823.0,66822.0,0.21767844]
[1718303704441,0.08503723,66823.0,66822.0,0.21767844]
[1718303706218,0.06,66821.0,66820.0,0.00855]
[1718303706433,1.45193802,66821.0,66820.0,0.00855]
[1718303706654,0.716313,66813.0,66811.0,0.00855]
[1718303706879,1.23077493,66813.0,66811.0,0.00855]
[1718303707360,1.23077493,66813.0,66790.0,0.15660795]
[1718303707361,0.01,66796.0,66790.0,0.15660795]
[1718303707565,0.0708,66791.0,66782.0,0.08]
[1718303707780,0.01,66796.0,66782.0,0.08]
[1718303708003,0.0708,66785.0,66784.0,0.00028219]
[1718303709044,0.149716,66793.0,66783.0,0.00028219]
[1718303709045,0.001,66791.0,66783.0,0.00028219]
[1718303709254,0.001,66791.0,66782.0,0.082]
[1718303709878,0.001,66791.0,66783.0,0.00028219]
[1718303710284,0.149716,66793.0,66787.0,0.00028219]
[1718303710490,0.001,66796.0,66795.0,0.00028219]
[1718303710598,0.001,66796.0,66790.0,0.00028219]
[1718303710808,0.001,66796.0,66791.0,0.00028219]
[1718303711015,0.01,66804.0,66791.0,0.00028219]
[1718303711220,0.01,66804.0,66790.0,0.00028219]
[1718303711417,0.149699,66801.0,66791.0,0.00028219]
[1718303711627,0.149699,66801.0,66788.0,0.346326]
[1718303711822,0.002,66796.0,66788.0,0.346326]
[1718303712290,0.149699,66801.0,66789.0,0.00028219]
[1718303712530,0.149725,66789.0,66788.0,0.1]
[1718303712753,0.149725,66789.0,66784.0,0.00028219]
[1718303713439,0.01,66791.0,66784.0,0.00028219]
[1718303713889,0.149722,66791.0,66784.0,0.00028219]
[1718303714516,0.149722,66791.0,66784.0,0.00128219]
[1718303714982,0.1776,66792.0,66784.0,0.00028219]
[1718303715196,0.001,66791.0,66786.0,0.00028219]
[1718303715407,0.1776,66792.0,66786.0,0.00028219]
[1718303715790,0.1776,66792.0,66785.0,0.270733]
[1718303715791,0.1776,66792.0,66787.0,0.00028219]
[1718303716302,0.1776,66792.0,66787.0,0.149728]
[1718303716476,0.1776,66792.0,66786.0,0.00028219]
[1718303716876,0.1776,66792.0,66785.0,0.121]
[1718303717071,0.1776,66792.0,66786.0,0.00028219]
[1718303717284,0.1776,66797.0,66787.0,0.00028219]
[1718303717689,0.002,66792.0,66785.0,0.121]
[1718303717848,0.003,66792.0,66787.0,0.00028219]
[1718303718044,0.002,66792.0,66787.0,0.00028219]
[1718303718293,0.1876,66797.0,66787.0,0.00028219]
[1718303718479,0.1926,66797.0,66787.0,0.00028219]
[1718303718827,0.1806,66797.0,66790.0,0.00028219]
[1718303719270,0.330308,66797.0,66790.0,0.00028219]
[1718303719896,0.327308,66797.0,66790.0,0.00028219]
[1718303720039,0.003,66792.0,66790.0,0.00028219]
[1718303720251,0.005,66792.0,66790.0,0.00028219]
[1718303720467,0.005,66792.0,66791.0,0.24060219]
[1718303720681,0.005,66792.0,66791.0,0.48492212]
[1718303720682,0.002,66792.0,66791.0,0.48492212]
[1718303720898,0.002,66792.0,66791.0,0.78436312]
[1718303721117,0.007,66797.0,66796.0,0.14999119]
[1718303721316,0.007,66797.0,66796.0,0.36079119]
[1718303721653,0.1063,66813.0,66800.0,0.14998119]
[1718303721654,0.255972,66813.0,66800.0,0.14998119]
[1718303721831,0.000946,66811.0,66803.0,0.00028219]
[1718303722035,0.000946,66811.0,66804.0,0.00028219]
[1718303723462,0.000946,66811.0,66796.0,0.2108]
[1718303723463,0.01,66808.0,66799.0,0.00028219]
[1718303723685,0.01,66804.0,66798.0,0.1]
[1718303723896,0.149702,66799.0,66798.0,0.1]
[1718303724453,0.1876,66799.0,66787.0,0.00028219]
[1718303724633,0.149722,66791.0,66786.0,0.0969]
[1718303724843,0.149722,66791.0,66784.0,0.00086]
[1718303725039,0.149723,66790.0,66784.0,0.00086]
[1718303725240,0.1776,66794.0,66784.0,0.00114219]
[1718303725426,0.149709,66796.0,66784.0,0.15087619]
[1718303725621,0.159709,66796.0,66784.0,0.15087619]
[1718303725842,0.149709,66796.0,66784.0,0.15087619]
[1718303726054,0.159709,66796.0,66785.0,0.249733]
[1718303726947,0.150709,66796.0,66790.0,0.00028219]
[1718303727101,0.001,66791.0,66790.0,0.00028219]
[1718303727933,0.001,66796.0,66790.0,0.00028219]
[1718303728343,0.002,66796.0,66791.0,0.00028219]
[1718303728494,0.001,66796.0,66785.0,0.001]
[1718303728928,0.149713,66795.0,66785.0,0.001]
[1718303729284,0.149715,66794.0,66785.0,0.001]
[1718303729733,0.01,66792.0,66784.0,0.250596]
[1718303729947,0.01,66793.0,66784.0,0.10086]
[1718303730272,0.1776,66794.0,66784.0,0.10086]
[1718303730273,0.151721,66791.0,66790.0,0.001]
[1718303730391,0.150721,66791.0,66790.0,0.001]
[1718303730592,0.150721,66791.0,66784.0,0.00086]
[1718303730593,0.149721,66791.0,66784.0,0.00086]
[1718303730861,0.149721,66791.0,66784.0,0.00186]
[1718303731504,0.149721,66791.0,66784.0,0.00086]
[1718303731692,0.150721,66791.0,66784.0,0.00186]
[1718303732133,0.151721,66791.0,66784.0,0.00186]
[1718303732328,0.151721,66791.0,66785.0,0.0048285]
[1718303732329,0.149733,66786.0,66785.0,0.0048285]
[1718303733855,0.159733,66786.0,66785.0,0.0048285]
[1718303734097,0.149733,66786.0,66785.0,0.0048285]
[1718303734322,0.159734,66785.0,66784.0,0.00086]
[1718303734797,0.149734,66785.0,66784.0,0.00086]
[1718303735884,0.149734,66785.0,66784.0,0.00569015]
[1718303736093,0.149734,66785.0,66784.0,0.00086]
[1718303736304,0.149734,66785.0,66784.0,0.00569015]
[1718303736517,0.159734,66785.0,66784.0,0.00569015]
[1718303736729,0.161734,66785.0,66784.0,0.00569015]
[1718303736944,0.159734,66785.0,66784.0,0.00569015]
[1718303737169,0.162734,66785.0,66784.0,0.00569015]
[1718303737407,0.166734,66785.0,66784.0,0.00569015]
[1718303737862,0.153734,66785.0,66784.0,0.00569015]
[1718303738022,0.157734,66785.0,66784.0,0.00569015]
[1718303738482,0.167734,66785.0,66784.0,0.00569015]
[1718303739238,0.157734,66785.0,66784.0,0.00569015]
[1718303740484,0.15755386,66785.0,66784.0,0.00569015]
[1718303741427,0.008,66785.0,66784.0,0.00569015]
[1718303742108,0.008,66785.0,66784.0,0.15570834]
[1718303742279,0.008,66785.0,66784.0,0.15542615]
[1718303743113,0.008,66785.0,66784.0,0.24962615]
[1718303743513,0.008,66785.0,66784.0,0.09989015]
[1718303744524,0.008,66785.0,66784.0,0.24990834]
[1718303744963,0.008,66785.0,66784.0,0.15570834]
[1718303746552,0.008,66785.0,66784.0,0.00569015]
[1718303748140,0.008,66785.0,66784.0,0.00597234]
[1718303748344,0.008,66785.0,66784.0,0.00569015]
[1718303749237,0.157734,66785.0,66784.0,0.00569015]
[1718303749790,0.008,66785.0,66784.0,0.00569015]
[1718303750680,0.157734,66785.0,66784.0,0.00569015]
[1718303751559,0.008,66785.0,66784.0,0.00569015]
[1718303751969,0.157734,66785.0,66784.0,0.00569015]
[1718303754126,0.008,66785.0,66784.0,0.00569015]
[1718303758627,0.157734,66785.0,66784.0,0.00569015]
[1718303759180,0.167734,66785.0,66784.0,0.00569015]
[1718303759377,0.157734,66785.0,66784.0,0.00569015]
[1718303759778,0.008,66785.0,66784.0,0.00569015]
[1718303759979,0.157734,66785.0,66784.0,0.00569015]
[1718303760206,0.363234,66785.0,66784.0,0.00569015]
[1718303760423,0.277734,66785.0,66784.0,0.00569015]
[1718303760609,0.672702,66785.0,66784.0,0.00569015]
[1718303760810,0.373234,66785.0,66784.0,0.00569015]
[1718303764641,0.94426529,66785.0,66784.0,0.00569015]
[1718303764860,1.42133329,66785.0,66784.0,0.00569015]
[1718303765201,1.36624989,66785.0,66784.0,0.00086]
[1718303765401,1.36224989,66785.0,66784.0,0.00086]
[1718303765835,1.47117196,66785.0,66784.0,0.00086]
[1718303766041,1.37124989,66785.0,66784.0,0.00086]
[1718303766237,1.36224989,66785.0,66784.0,0.00086]
[1718303766637,1.37124989,66785.0,66784.0,0.00086]
[1718303767160,1.30808993,66785.0,66784.0,0.00086]
[1718303767362,1.399012,66785.0,66784.0,0.00086]
[1718303767589,1.85579993,66785.0,66784.0,0.00086]
[1718303767782,1.90579993,66785.0,66784.0,0.00086]
[1718303768014,1.76148,66785.0,66784.0,0.00086]
[1718303768522,1.55598,66785.0,66784.0,0.00086]
[1718303768648,1.458212,66785.0,66784.0,0.00086]
[1718303768869,1.445212,66785.0,66784.0,0.00086]
[1718303769099,1.459212,66785.0,66784.0,0.00086]
[1718303769539,1.25812307,66781.0,66780.0,0.00855]
[1718303769850,0.51836907,66779.0,66778.0,0.14123674]
[1718303769998,0.95781622,66779.0,66778.0,0.14123674]
[1718303770207,1.55680622,66779.0,66778.0,0.14123674]
[1718303770407,1.57980622,66779.0,66778.0,0.14123674]
[1718303770601,1.87930122,66779.0,66778.0,0.14123674]
[1718303770763,2.02362115,66779.0,66778.0,0.14123674]
[1718303771185,1.72412615,66779.0,66778.0,0.14123674]
[1718303771406,1.59380622,66779.0,66778.0,0.14123674]
[1718303772241,1.59414677,66779.0,66778.0,0.14123674]
[1718303772452,1.90764177,66779.0,66778.0,0.14123674]
[1718303772893,1.06774907,66771.0,66770.0,0.00855]
[1718303773160,1.389669,66771.0,66770.0,0.00855]
[1718303773375,1.6892,66771.0,66770.0,0.00855]
[1718303774496,1.7022,66771.0,66770.0,0.00855]
[1718303774708,1.7152,66771.0,66770.0,0.00855]
[1718303775807,0.71668493,66771.0,66770.0,0.00855]
[1718303776017,0.185765,66771.0,66770.0,0.00855]
[1718303776485,0.175765,66771.0,66770.0,0.00855]
[1718303776692,0.026,66771.0,66770.0,0.00855]
[1718303777471,0.026,66771.0,66770.0,0.21725]
[1718303777676,0.026,66771.0,66770.0,0.22217946]
[1718303778260,0.06,66782.0,66770.0,0.22217946]
[1718303778508,0.005,66771.0,66770.0,0.22217946]
[1718303778732,0.01,66771.0,66770.0,0.22217946]
[1718303779009,0.01,66771.0,66770.0,0.21725]
[1718303779185,0.005,66771.0,66770.0,0.22217946]
[1718303779398,0.005,66771.0,66770.0,0.37222865]
[1718303779599,0.005,66771.0,66770.0,0.47222865]
[1718303780348,0.005,66771.0,66770.0,0.48217422]
[1718303780572,0.005,66782.0,66781.0,0.20978219]
[1718303781016,0.005,66782.0,66781.0,0.36443284]
[1718303781235,0.01905188,66785.0,66784.0,0.00028219]
[1718303781673,0.000946,66785.0,66784.0,0.00489066]
[1718303781879,0.000946,66785.0,66781.0,0.20978219]
[1718303782129,0.000946,66785.0,66784.0,0.00489066]
[1718303782361,0.000946,66785.0,66781.0,0.21178219]
[1718303782579,0.000946,66785.0,66784.0,0.00489066]
[1718303783481,0.000946,66785.0,66781.0,0.20978219]
[1718303783688,0.000946,66785.0,66784.0,0.00489066]
[1718303783919,0.000946,66785.0,66781.0,0.20978219]
[1718303784148,0.000946,66785.0,66784.0,0.00489066]
[1718303784357,0.15368,66785.0,66784.0,0.00489066]
[1718303784571,0.003946,66785.0,66775.0,0.2119]
[1718303784807,0.60646793,66785.0,66784.0,0.00489066]
[1718303785046,0.63233393,66785.0,66772.0,0.1]
[1718303785272,0.1776,66772.0,66770.0,0.00855]
[1718303785498,0.149765,66771.0,66770.0,0.00855]
[1718303785720,0.1776,66772.0,66770.0,0.00855]
[1718303786644,0.149759,66774.0,66770.0,0.00855]
[1718303786870,0.1776,66777.0,66770.0,0.00883219]
[1718303787388,0.1776,66777.0,66770.0,0.00855]
[1718303787783,0.001,66772.0,66770.0,0.00855]
[1718303788437,0.149755,66776.0,66770.0,0.00855]
[1718303788887,0.149755,66776.0,66770.0,0.00955]
[1718303788888,0.001,66772.0,66770.0,0.00955]
[1718303789333,0.149755,66776.0,66770.0,0.00855]
[1718303789546,0.003,66772.0,66770.0,0.00855]
[1718303789765,0.005,66772.0,66770.0,0.00855]
[1718303790400,0.005,66772.0,66771.0,0.00028219]
[1718303790848,0.002,66772.0,66770.0,0.00883219]
[1718303791055,0.002,66772.0,66771.0,0.00490076]
[1718303791943,0.004,66772.0,66771.0,0.00490076]
[1718303792147,0.008,66772.0,66771.0,0.00490076]
[1718303792804,0.167763,66772.0,66771.0,0.00490076]
[1718303793020,0.48968293,66772.0,66771.0,0.00490076]
[1718303793241,0.159765,66771.0,66770.0,0.00855]
[1718303794330,0.67577589,66771.0,66770.0,0.00855]
[1718303794944,0.60361593,66771.0,66770.0,0.00855]
[1718303795256,0.60861593,66771.0,66770.0,0.00855]
[1718303795615,0.30708493,66771.0,66770.0,0.00855]
[1718303795819,0.30408493,66771.0,66770.0,0.00855]
[1718303796026,0.31808493,66771.0,66770.0,0.00855]
[1718303796231,0.014,66771.0,66770.0,0.00855]
[1718303796433,0.30808493,66771.0,66770.0,0.00855]
[1718303796629,0.31808493,66771.0,66770.0,0.00855]
[1718303797244,0.33208493,66771.0,66770.0,0.00855]
[1718303798556,0.18231993,66771.0,66770.0,0.00855]
[1718303798996,0.028,66771.0,66770.0,0.00855]
[1718303799458,0.177765,66771.0,66770.0,0.00855]
[1718303799681,0.187765,66771.0,66770.0,0.00855]
[1718303799899,0.25992496,66771.0,66770.0,0.00855]
[1718303800101,0.40424489,66771.0,66770.0,0.00855]
[1718303800304,0.33208493,66771.0,66770.0,0.00855]
[1718303801054,0.63161593,66771.0,66770.0,0.00855]
[1718303801848,1.10322896,66771.0,66770.0,0.00855]
[1718303802050,1.31362896,66771.0,66770.0,0.00855]
[1718303802252,0.91417589,66771.0,66770.0,0.00855]
[1718303804187,0.84201593,66771.0,66770.0,0.00855]
[1718303804420,0.86062187,66771.0,66770.0,0.00855]
[1718303805682,0.56109087,66771.0,66770.0,0.00855]
[1718303806534,0.86062187,66771.0,66770.0,0.00855]
[1718303808387,0.93278183,66771.0,66770.0,0.00855]
[1718303808589,1.37663276,66771.0,66770.0,0.00855]
[1718303809094,0.93278183,66771.0,66770.0,0.00855]
[1718303809943,1.0327039,66771.0,66770.0,0.00855]
[1718303810374,1.7317659,66771.0,66770.0,0.00855]
[1718303810578,0.159799,66756.0,66755.0,0.00855]
[1718303810738,0.327399,66756.0,66755.0,0.00855]
[1718303810935,0.337399,66756.0,66755.0,0.0134799]
[1718303811798,0.328399,66756.0,66755.0,0.0134799]
[1718303812022,0.150799,66756.0,66755.0,0.0134799]
[1718303812227,0.151799,66756.0,66755.0,0.0134799]
[1718303812669,0.912939,66756.0,66755.0,0.0134799]
[1718303812873,0.9958789,66756.0,66755.0,0.00855]
[1718303813021,1.2954769,66756.0,66755.0,0.00855]
[1718303813183,1.261537,66756.0,66755.0,0.00855]
[1718303813397,1.16161493,66756.0,66755.0,0.00855]
[1718303813820,1.17061493,66756.0,66755.0,0.00855]
[1718303814017,1.16961493,66756.0,66755.0,0.00855]
[1718303814220,1.269537,66756.0,66755.0,0.00855]
[1718303814419,1.16961493,66756.0,66755.0,0.00855]
[1718303815253,0.74801893,66756.0,66755.0,0.00855]
[1718303815851,0.77117136,66756.0,66755.0,0.00855]
[1718303816199,1.08476936,66756.0,66755.0,0.00855]
[1718303816402,0.78517136,66756.0,66755.0,0.00855]
[1718303816539,0.76701893,66756.0,66755.0,0.00855]
[1718303817342,0.70701893,66756.0,66755.0,0.00855]
[1718303817544,0.61131893,66756.0,66755.0,0.00855]
[1718303817979,0.66131893,66756.0,66755.0,0.00855]
[1718303818430,0.61131893,66756.0,66755.0,0.00855]
[1718303818635,0.66131893,66756.0,66755.0,0.00855]
[1718303818784,0.49971893,66756.0,66755.0,0.00855]
[1718303818964,0.51775774,66756.0,66755.0,0.00855]
[1718303820711,0.36795874,66756.0,66755.0,0.00855]
[1718303820935,0.51775774,66756.0,66755.0,0.00855]
[1718303821902,0.36795874,66756.0,66755.0,0.00855]
[1718303822102,0.51775774,66756.0,66755.0,0.00855]
[1718303822877,0.22363881,66756.0,66755.0,0.00855]
[1718303823120,0.028,66756.0,66755.0,0.16333374]
[1718303823362,0.028,66756.0,66755.0,0.37923374]
[1718303823532,0.028,66756.0,66755.0,0.22971493]
[1718303824121,0.014,66756.0,66755.0,0.22971493]
[1718303824326,0.023,66756.0,66755.0,0.22971493]
[1718303826047,0.009,66756.0,66755.0,0.22943274]
[1718303826492,0.018,66756.0,66755.0,0.37951593]
[1718303827154,0.018,66756.0,66755.0,0.22943274]
[1718303828828,0.018,66756.0,66755.0,0.22971493]
[1718303829468,0.018,66756.0,66755.0,0.22943274]
[1718303829684,0.018,66756.0,66755.0,0.22971493]
[1718303829895,0.018,66756.0,66755.0,0.22943274]
[1718303830523,0.167799,66756.0,66755.0,0.22943274]
[1718303830917,0.167799,66756.0,66755.0,0.22445]
[1718303831373,0.162799,66756.0,66755.0,0.22943274]
[1718303831740,0.013,66756.0,66755.0,0.22943274]
[1718303831941,0.013,66756.0,66755.0,0.22445]
[1718303832337,0.162799,66756.0,66755.0,0.10663274]
[1718303833361,0.162799,66756.0,66755.0,0.22851493]
[1718303833362,0.013,66756.0,66755.0,0.22851493]
[1718303839827,0.013,66756.0,66755.0,0.22823274]
[1718303840066,0.013,66756.0,66755.0,0.22851493]
[1718303842298,0.013,66756.0,66755.0,0.37831593]
[1718303843507,0.013,66756.0,66755.0,0.22851493]
[1718303844532,0.013,66756.0,66755.0,0.01353274]
[1718303845182,0.0841,66756.0,66755.0,0.01353274]
[1718303845390,0.458299,66756.0,66755.0,0.01353274]
[1718303845600,1.301737,66756.0,66755.0,0.01353274]
[1718303845803,1.377526,66756.0,66755.0,0.00855]
[1718303846007,1.44684432,66756.0,66755.0,0.00855]
[1718303846428,1.37105532,66756.0,66755.0,0.00855]
[1718303846705,1.35805532,66756.0,66755.0,0.00855]
[1718303846907,1.28695532,66756.0,66755.0,0.00855]
[1718303847059,1.49285532,66756.0,66755.0,0.00955]
[1718303847283,1.47885532,66756.0,66755.0,0.00955]
[1718303847460,1.46485532,66756.0,66755.0,0.00855]
[1718303847692,1.395537,66756.0,66755.0,0.00855]
[1718303847868,1.47986328,66756.0,66755.0,0.00955]
[1718303848259,1.409537,66756.0,66755.0,0.00955]
[1718303848464,1.4798181,66756.0,66755.0,0.00955]
[1718303848685,1.39389603,66756.0,66755.0,0.00955]
[1718303848889,1.409537,66756.0,66755.0,0.00955]
[1718303849087,1.395537,66756.0,66755.0,0.00855]
[1718303849265,1.409537,66756.0,66755.0,0.00855]
[1718303849469,1.423537,66756.0,66755.0,0.00955]
[1718303849697,1.4419163,66756.0,66755.0,0.00955]
[1718303854980,1.86171328,66756.0,66755.0,1e-08]
[1718303855376,1.91171328,66756.0,66755.0,1e-08]
[1718303855572,1.93471328,66756.0,66755.0,1e-08]
[1718303857769,1.91633398,66756.0,66755.0,1e-08]
[1718303858930,2.06065391,66756.0,66755.0,1e-08]
[1718303859540,2.06096595,66756.0,66755.0,1e-08]
[1718303860761,1.99045493,66756.0,66755.0,1e-08]
[1718303861039,2.06096567,66756.0,66755.0,1e-08]
[1718303861358,0.759162,66741.0,66740.0,0.0128592]
[1718303861561,0.937062,66741.0,66740.0,0.0128592]
[1718303862157,1.08138193,66741.0,66740.0,0.0128592]
[1718303862777,1.08938193,66741.0,66740.0,0.0128592]
[1718303862988,1.09738193,66741.0,66740.0,0.0128592]
[1718303863226,1.496969,66741.0,66740.0,0.0128592]
[1718303863427,1.3969211,66741.0,66740.0,0.0128592]
[1718303863630,1.3809211,66741.0,66740.0,0.0128592]
[1718303864042,1.3969211,66741.0,66740.0,0.0128592]
[1718303865500,1.3889211,66741.0,66740.0,0.0128592]
[1718303865690,1.3949211,66741.0,66740.0,0.0128592]
[1718303866013,1.4089211,66741.0,66740.0,0.0128592]
[1718303866619,1.50884317,66741.0,66740.0,0.0128592]
[1718303866828,1.4089211,66741.0,66740.0,0.0128592]
[1718303868981,1.3022211,66741.0,66740.0,0.0128592]
[1718303869881,1.40214317,66741.0,66740.0,0.0128592]
[1718303870107,1.5464631,66741.0,66740.0,0.0128592]
[1718303870313,1.45214317,66741.0,66740.0,0.0128592]
[1718303872131,1.3522211,66741.0,66740.0,0.0128592]
[1718303872334,1.0525561,66741.0,66740.0,0.0128592]
[1718303872534,1.0705152,66741.0,66740.0,0.0128592]
[1718303872746,1.0525561,66741.0,66740.0,0.0128592]
[1718303874121,0.04585325,66741.0,66740.0,0.2202592]
[1718303874329,0.028,66741.0,66740.0,0.37553169]
[1718303874533,0.0992,66741.0,66740.0,0.22528867]
[1718303874740,0.0992,66741.0,66740.0,0.22569669]
[1718303875261,0.0852,66741.0,66740.0,0.22569669]
[1718303875483,0.0722,66741.0,66740.0,0.22569669]
[1718303875698,0.002,66741.0,66740.0,0.22969669]
[1718303875871,0.0722,66741.0,66740.0,0.22969669]
[1718303876092,0.0742,66741.0,66740.0,0.22969669]
[1718303876293,0.0732,66741.0,66740.0,0.22569669]
[1718303876497,0.0712,66741.0,66740.0,0.22569669]
[1718303876699,0.003,66741.0,66740.0,0.37553169]
[1718303877272,0.003,66741.0,66740.0,0.37639169]
[1718303877546,0.003,66741.0,66740.0,0.22614867]
[1718303878543,0.14982,66747.0,66740.0,0.22614867]
[1718303878749,0.14982,66747.0,66740.0,0.2211192]
[1718303878909,0.14982,66747.0,66741.0,0.00500231]
[1718303879103,0.14982,66747.0,66742.0,0.00040802]
[1718303879310,0.14982,66747.0,66740.0,0.2251192]
[1718303879533,0.14982,66747.0,66743.0,0.00500231]
[1718303879733,0.14982,66747.0,66740.0,0.2211192]
[1718303879965,0.15182,66747.0,66744.0,0.00500231]
[1718303880332,0.15182,66747.0,66745.0,0.00500231]
[1718303880474,0.15082,66747.0,66740.0,0.2211192]
[1718303880660,0.15082,66747.0,66746.0,0.00498175]
[1718303880862,0.15082,66747.0,66740.0,0.2211192]
[1718303881085,0.15082,66747.0,66746.0,0.00498175]
[1718303881262,0.15082,66747.0,66740.0,0.2211192]
[1718303881263,0.149822,66746.0,66740.0,0.2211192]
[1718303881465,0.18767417,66743.0,66740.0,0.0137192]
[1718303881737,0.15970617,66741.0,66740.0,0.0137192]
[1718303882131,0.149832,66741.0,66740.0,0.0137192]
[1718303882256,0.15970617,66741.0,66740.0,0.0137192]
[1718303882668,0.45937117,66741.0,66740.0,0.0137192]
[1718303883120,0.15970617,66741.0,66740.0,0.0137192]
[1718303883626,0.16170617,66741.0,66740.0,0.0137192]
[1718303883824,0.16470617,66741.0,66740.0,0.0137192]
[1718303884047,0.154832,66741.0,66740.0,0.0137192]
[1718303884326,0.332632,66741.0,66740.0,0.0137192]
[1718303884894,0.34250617,66741.0,66740.0,0.0137192]
[1718303885124,0.33750617,66741.0,66740.0,0.0137192]
[1718303885557,0.35750617,66741.0,66740.0,0.0137192]
[1718303885767,0.34750617,66741.0,66740.0,0.0137192]
[1718303885941,0.33750617,66741.0,66740.0,0.0137192]
[1718303886150,0.34550617,66741.0,66740.0,0.0137192]
[1718303886347,0.35450617,66741.0,66740.0,0.0137192]
[1718303886569,0.34650617,66741.0,66740.0,0.0137192]
[1718303886774,1.27807817,66741.0,66740.0,0.0137192]
[1718303887019,1.33807817,66741.0,66740.0,0.0137192]
[1718303887175,1.70944583,66741.0,66740.0,0.01140832]
[1718303887653,1.13205876,66741.0,66740.0,0.01140832]
[1718303887855,1.30985876,66741.0,66740.0,0.01140832]
[1718303888090,1.40978083,66741.0,66740.0,0.01140832]
[1718303888261,1.41978083,66741.0,66740.0,0.01140832]
[1718303888466,1.31985876,66741.0,66740.0,0.01140832]
[1718303888867,1.39978083,66741.0,66740.0,0.01140832]
[1718303889071,1.40778083,66741.0,66740.0,0.01140832]
[1718303889273,1.42178083,66741.0,66740.0,0.01140832]
[1718303889497,1.41378083,66741.0,66740.0,0.01140832]
[1718303889809,1.88564583,66741.0,66740.0,0.01140832]
[1718303890053,1.89964583,66741.0,66740.0,0.01140832]
[1718303891390,1.89964583,66741.0,66717.0,0.00856]
[1718303891391,0.149876,66722.0,66719.0,0.0961]
[1718303891645,0.149876,66722.0,66717.0,0.00856]
[1718303891646,0.45952717,66718.0,66717.0,0.00856]
[1718303891877,1.05353817,66718.0,66717.0,0.00856]
[1718303892091,0.8316471,66718.0,66717.0,0.00856]
[1718303893041,0.8456471,66718.0,66717.0,0.00856]
[1718303893493,0.8316471,66718.0,66717.0,0.00856]
[1718303893721,0.8596471,66718.0,66717.0,0.00856]
[1718303893926,0.5098781,66718.0,66717.0,0.00856]
[1718303894279,0.5598781,66718.0,66717.0,0.00856]
[1718303894479,0.95956917,66718.0,66717.0,0.00856]
[1718303894589,0.8596471,66718.0,66717.0,0.00856]
[1718303894809,1.1594161,66718.0,66717.0,0.00856]
[1718303895279,1.1454161,66718.0,66717.0,0.00856]
[1718303895486,1.1314161,66718.0,66717.0,0.00856]
[1718303895736,1.1454161,66718.0,66717.0,0.00856]
[1718303896727,1.25933817,66718.0,66717.0,0.00856]
[1718303896927,1.1594161,66718.0,66717.0,0.00856]
[1718303897245,1.23133817,66718.0,66717.0,0.00856]
[1718303897485,1.28133817,66718.0,66717.0,0.00856]
[1718303898079,1.1814161,66718.0,66717.0,0.00856]
[1718303898937,0.8956471,66718.0,66717.0,0.00856]
[1718303899313,1.1954161,66718.0,66717.0,0.00856]
[1718303899967,0.8956471,66718.0,66717.0,0.00856]
[1718303900242,1.32184925,66718.0,66717.0,0.00856]
[1718303900456,1.22192718,66718.0,66717.0,0.00856]
[1718303900624,1.33584925,66718.0,66717.0,0.00856]
[1718303900775,1.02208025,66718.0,66717.0,0.00856]
[1718303901225,1.03608025,66718.0,66717.0,0.00856]
[1718303901557,1.33584925,66718.0,66717.0,0.00856]
[1718303902066,1.52119956,66718.0,66711.0,0.00856]
[1718303902245,1.52119956,66718.0,66706.0,0.00103]
[1718303902246,0.55952324,66707.0,66706.0,0.00103]
[1718303902420,0.7817211,66707.0,66706.0,0.00103]
[1718303903502,0.7957211,66707.0,66706.0,0.00103]
[1718303903814,0.8097211,66707.0,66706.0,0.00103]
[1718303904884,1.25946117,66707.0,66706.0,0.00103]
[1718303905919,1.24546117,66707.0,66706.0,0.00103]
[1718303906128,1.1315391,66707.0,66706.0,0.00103]
[1718303906328,1.1455391,66707.0,66706.0,0.00103]
[1718303906838,1.1315391,66707.0,66706.0,0.00103]
[1718303906990,1.1595391,66707.0,66706.0,0.00103]
[1718303907191,1.1455391,66707.0,66706.0,0.00103]
[1718303907388,0.4959031,66707.0,66706.0,0.00103]
[1718303907554,0.8097211,66707.0,66706.0,0.00103]
[1718303907996,0.7957211,66707.0,66706.0,0.00103]
[1718303908420,0.15979017,66704.0,66694.0,0.2069]
[1718303908652,0.6039421,66704.0,66694.0,0.2069]
[1718303909062,1.0815741,66704.0,66694.0,0.2069]
[1718303909755,0.014,66707.0,66695.0,0.07215996]
[1718303910000,0.1778,66705.0,66704.0,0.20250802]
[1718303910278,0.1778,66705.0,66704.0,0.2021]
[1718303910540,0.1778,66705.0,66704.0,0.09435852]
[1718303910541,0.327713,66705.0,66704.0,0.09435852]
[1718303910784,0.163916,66704.0,66703.0,0.00856]
[1718303911056,0.3181101,66704.0,66703.0,0.00856]
[1718303911299,0.6039421,66704.0,66703.0,0.00856]
[1718303911479,0.9037741,66704.0,66703.0,0.01371814]
[1718303911628,0.9037741,66704.0,66703.0,0.00856]
[1718303912855,0.6039421,66704.0,66703.0,0.00856]
[1718303913249,0.6319421,66704.0,66703.0,0.00856]
[1718303913875,0.6179421,66704.0,66703.0,0.00856]
[1718303914683,0.6319421,66704.0,66703.0,0.00856]
[1718303915002,0.6179421,66704.0,66703.0,0.00856]
[1718303915386,0.6319421,66704.0,66703.0,0.00856]
[1718303916320,0.8097421,66704.0,66703.0,0.00856]
[1718303916532,0.7957421,66704.0,66703.0,0.00856]
[1718303916933,0.50420635,66704.0,66703.0,0.00856]
[1718303917138,0.20997042,66704.0,66703.0,0.00856]
[1718303917272,0.23384459,66704.0,66703.0,0.09826]
[1718303917476,0.37388642,66704.0,66703.0,0.09826]